{"text_format":"1","workbook":"xlsx","n_sheets":5,"sheets":["Sheet1","Sheet3","Sheet5","Sheet4","Sheet2"],"not_rendered":{"charts":0,"images":1,"macros":1,"external_links":0,"defined_names":1,"comments":2,"pivot_tables":0},"unopened":[],"bounds":{"document_bytes":16777216,"sheet_cells":100000,"rows_first":2000,"rows_last":500,"rows_between":2000,"halvings":0,"cell_chars":16384,"cell_head_chars":4096},"cells_cut":0,"cells_raw":0,"read":"whole","date_system":"1900"}

{"sheet":"Sheet1","index":0,"n_rows":47,"n_cols":23,"rows_kept":47,"cut":false,"hidden":false,"merged":[[1,0,1,22],[2,1,2,8],[3,0,3,16],[4,2,4,8],[4,10,4,11],[4,12,4,13],[2,11,2,15],[2,21,2,22],[3,21,3,22],[4,21,4,22],[2,17,2,19],[3,17,3,19],[4,17,4,19],[0,0,0,22],[22,21,24,22],[21,0,21,22],[22,5,24,6],[22,7,24,9],[22,10,22,16],[22,17,24,17],[22,19,24,19],[13,0,13,1],[13,2,13,5],[13,6,13,8],[10,2,12,5],[10,6,12,8],[19,0,19,21],[20,0,20,22],[10,16,12,16],[31,0,31,22],[32,0,33,22],[34,0,36,1],[34,2,36,22],[30,0,30,19],[30,21,30,22],[41,0,41,22],[44,0,44,1],[44,2,44,11],[40,12,40,22],[42,0,42,1],[42,2,42,11],[44,19,44,22],[37,0,37,22],[38,0,38,22],[39,0,39,22],[40,0,40,1],[40,2,40,11],[5,17,5,19],[11,9,11,15],[6,2,6,8],[8,0,8,22],[10,0,12,1],[10,17,12,17],[10,19,12,19],[10,21,12,21],[10,22,12,22],[10,9,10,15],[10,20,12,20],[9,0,9,22],[5,21,5,22],[15,0,15,1],[15,2,15,5],[15,6,15,8],[14,6,14,8],[10,18,12,18],[14,0,14,1],[14,2,14,5],[16,0,16,1],[16,2,16,5],[16,6,16,8],[17,0,17,1],[17,2,17,5],[17,6,17,8],[26,21,26,22],[18,0,18,1],[18,2,18,5],[18,6,18,8],[25,5,25,6],[25,7,25,9],[46,0,46,22],[29,5,29,6],[29,7,29,9],[29,21,29,22],[22,0,23,0],[22,1,23,4],[23,10,23,16],[27,5,27,6],[27,7,27,9],[27,21,27,22],[28,5,28,6],[28,7,28,9],[28,21,28,22],[25,21,25,22],[26,5,26,6],[26,7,26,9]]}
["COMMUNITY DEVELOPMENT & REVITALIZATION\nThe Texas General Land Office\nForce Account Labor - Construction Personnel Time Sheet"]
[]
["Subrecipient:",null,null,null,null,null,null,null,null,"Contract Number:",null,null,null,null,null,null,null,"WEEKLY SUMMARY",null,null,null,"COST"]
[null,null,null,null,null,null,null,null,null,null,null,null,null,null,null,null,null,"Personnel",null,null,null,{"$f":"W20","v":{"$error":"#DIV/0!"}}]
["Project Description:",null,null,null,null,null,null,null,null,"Week of:","Start Date",null,null,null,"End Date",null,null,"Equipment",null,null,null,{"$f":"V31","v":{"$error":"#N/A"}}]
[null,null,null,null,null,null,null,null,null,null,null,null,"",null,null,null,null,"TOTAL COSTS:",null,null,null,{"$f":"SUM(V4:W5)","v":{"$error":"#DIV/0!"}}]
["Activity Type "]
[null,null,null,null,""]
["Please note that a separate summary of Construction Personnel Time should be submitted based on the activity type. "]
["Table A: Personnel Costs"]
["Employee Name",null,"Job Classification",null,null,null,"Activity Performed and Location of Work ",null,null,"Hours Worked",null,null,null,null,null,null,"Total Hours -GLO-CDR (Actually worked)","Total Hours - All Work","% of CDR Hours","   Total Leave Hours (All leave in the work week)","% of PTO ","Hourly Rate","Total Cost"]
[null,null,null,null,null,null,null,null,null,"The Subrecipent is allowed to change the days below based on the weekly schedule "]
[null,null,null,null,null,null,null,null,null,"M","T","W","T","F","S","S"]
[null,null,null,null,null,null,null,null,null,null,null,null,null,null,null,null,null,{"$f":"SUM(J14:P14)","v":0},{"$f":"Q14/R14","v":{"$error":"#DIV/0!"}},null,{"$f":"T14*S14","v":{"$error":"#DIV/0!"}},null,{"$f":"(Q14+U14)*V14","v":{"$error":"#DIV/0!"}}]
[null,null,null,null,null,null,null,null,null,null,null,null,null,null,null,null,null,{"$f":"SUM(J15:P15)","v":0},{"$f":"Q15/R15","v":{"$error":"#DIV/0!"}},null,{"$error":"#DIV/0!"},null,{"$f":"(Q15+U15)*V15","v":{"$error":"#DIV/0!"}}]
[null,null,null,null,null,null,null,null,null,null,null,null,null,null,null,null,null,0,{"$error":"#DIV/0!"},null,{"$error":"#DIV/0!"},null,{"$f":"(Q16+U16)*V16","v":{"$error":"#DIV/0!"}}]
[null,null,null,null,null,null,null,null,null,null,null,null,null,null,null,null,null,0,{"$error":"#DIV/0!"},null,{"$error":"#DIV/0!"},null,{"$error":"#DIV/0!"}]
[null,null,null,null,null,null,null,null,null,null,null,null,null,null,null,null,null,0,{"$error":"#DIV/0!"},null,{"$error":"#DIV/0!"},null,{"$error":"#DIV/0!"}]
[null,null,null,null,null,null,null,null,null,null,null,null,null,null,null,null,null,0,{"$error":"#DIV/0!"},null,{"$error":"#DIV/0!"},null,{"$error":"#DIV/0!"}]
["Total Weekly Personnel Costs:",null,null,null,null,null,null,null,null,null,null,null,null,null,null,null,null,null,null,null,null,null,{"$f":"SUM(W14:W19)","v":{"$error":"#DIV/0!"}}]
["*For additional employees please fill out a separate form within the same billing timeframe "]
["Table B: Equipment Costs"]
["FEMA Code","Equipment (type, and size)",null,null,null,"Operator",null,"Activity Performed and Location of Work*",null,null,"Hours/Miles**",null,null,null,null,null,null,"Total Hours/ Miles- GLO-CDR",null,"Hourly/ Fed. Mileage Rate",null,"Total Cost"]
[null,null,null,null,null,null,null,null,null,null,"The Subrecipent is allowed to change the days below based on the weekly schedule "]
["(Select FEMA Code)","Equiptment","Specs.","Capacity/size","HP",null,null,null,null,null,"M","T","W","T","F","S","S"]
[null,{"$f":"VLOOKUP(A26,Sheet3!1:1048576,2)","v":{"$error":"#N/A"}},{"$f":"VLOOKUP(A26,Sheet3!1:1048576,3)","v":{"$error":"#N/A"}},{"$f":"VLOOKUP(A26,Sheet3!1:1048576,4)","v":{"$error":"#N/A"}},{"$f":"VLOOKUP(A26,Sheet3!1:1048576,5)","v":{"$error":"#N/A"}},null,null,null,null,null,null,null,null,null,null,null,null,{"$f":"SUM(K26:Q26)","v":0},null,{"$f":"VLOOKUP(A26,Sheet3!1:1048576,8)","v":{"$error":"#N/A"}},null,{"$f":"R26*T26","v":{"$error":"#N/A"}}]
[null,{"$f":"VLOOKUP(A27,Sheet3!1:1048576,2)","v":{"$error":"#N/A"}},{"$f":"VLOOKUP(A27,Sheet3!1:1048576,3)","v":{"$error":"#N/A"}},{"$f":"VLOOKUP(A27,Sheet3!1:1048576,4)","v":{"$error":"#N/A"}},{"$f":"VLOOKUP(A27,Sheet3!1:1048576,5)","v":{"$error":"#N/A"}},null,null,null,null,null,null,null,null,null,null,null,null,{"$f":"SUM(K27:Q27)","v":0},null,{"$f":"VLOOKUP(A27,Sheet3!1:1048576,8)","v":{"$error":"#N/A"}},null,{"$error":"#N/A"}]
[null,{"$f":"VLOOKUP(A28,Sheet3!1:1048576,2)","v":{"$error":"#N/A"}},{"$f":"VLOOKUP(A28,Sheet3!1:1048576,3)","v":{"$error":"#N/A"}},{"$f":"VLOOKUP(A28,Sheet3!1:1048576,4)","v":{"$error":"#N/A"}},{"$f":"VLOOKUP(A28,Sheet3!1:1048576,5)","v":{"$error":"#N/A"}},null,null,null,null,null,null,null,null,null,null,null,null,0,null,{"$f":"VLOOKUP(A28,Sheet3!1:1048576,8)","v":{"$error":"#N/A"}},null,{"$error":"#N/A"}]
[null,{"$f":"VLOOKUP(A29,Sheet3!1:1048576,2)","v":{"$error":"#N/A"}},{"$f":"VLOOKUP(A29,Sheet3!1:1048576,3)","v":{"$error":"#N/A"}},{"$f":"VLOOKUP(A29,Sheet3!1:1048576,4)","v":{"$error":"#N/A"}},{"$f":"VLOOKUP(A29,Sheet3!1:1048576,5)","v":{"$error":"#N/A"}},null,null,null,null,null,null,null,null,null,null,null,null,0,null,{"$f":"VLOOKUP(A29,Sheet3!1:1048576,8)","v":{"$error":"#N/A"}},null,{"$error":"#N/A"}]
[null,{"$f":"VLOOKUP(A30,Sheet3!1:1048576,2)","v":{"$error":"#N/A"}},{"$f":"VLOOKUP(A30,Sheet3!1:1048576,3)","v":{"$error":"#N/A"}},{"$f":"VLOOKUP(A30,Sheet3!1:1048576,4)","v":{"$error":"#N/A"}},{"$f":"VLOOKUP(A30,Sheet3!1:1048576,5)","v":{"$error":"#N/A"}},null,null,null,null,null,null,null,null,null,null,null,null,0,null,{"$f":"VLOOKUP(A30,Sheet3!1:1048576,8)","v":{"$error":"#N/A"}},null,{"$error":"#N/A"}]
["Total Weekly Equipment Costs",null,null,null,null,null,null,null,null,null,null,null,null,null,null,null,null,null,null,null,null,{"$f":"SUM(V26:W30)","v":{"$error":"#N/A"}}]
["*For additional equiptment please fill out a separate form within the same billing timeframe "]
["-Operator hours described in this table MUST be documented on Table A\n-Vehicles used for transport of people must be based on rate per mile."]
[]
["** Additional Justifications \n(If necessary)"]
[]
[]
[]
["CERTIFICATION: I certify that the above named employees were on the City/County payroll and the equipment described was utilized on the dates stated solely to complete construction activities for GLO-CDR authorized projects as outlined in the Subrecipient's Contract Attachment A.  Activities, times, dates, and amounts are correct to the best of my knowledge. \nWARNING: ANY PERSON WHO KNOWINGLY MAKES A FALSE CLAIM OR STATEMENT TO HUD MAY BE SUBJECT TO CIVIL OR CRIMINAL PENALTIES UNDER 18 U.S.C. § 287, 18 U.S.C. § 1001, AND 31 U.S.C. § 3729."]
[]
["Supervisor Signature"]
[]
["Supervisor Name Printed"]
[]
["Supervisor Title",null,null,null,null,null,null,null,null,null,null,null,null,null,null,null,null,null,null,"Effective September 2018"]
[]
["Disclaimer: The Texas General Land Office has made every effort to ensure the information contained on this form is accurate and in compliance with the most up-to-date CDBG-DR and/or CDBG-MIT federal rules and regulations, as applicable. It should be noted that the Texas General Land Office assumes no liability or responsibility for any error or omission on this form that may result from the interim period between the publication of amended and/or revised federal rules and regulations and the Texas General Land Office's standard review and update schedule."]

{"sheet":"Sheet3","index":1,"n_rows":495,"n_cols":8,"rows_kept":495,"cut":false,"hidden":false,"merged":[[106,7,108,7],[275,0,277,0],[361,0,365,0],[393,7,394,7]]}
["Cost Code","Equipment","Specifications","Capacity or Size","HP","Notes","Unit","2019\nUpdated Rate"]
[8010,"Air Compressor","Air Delivery","41 CFM","to 10","Hoses included.","hour",1.62]
[8011,"Air Compressor","Air Delivery","103 CFM","to 30","Hoses included.","hour",9.86]
[8012,"Air Compressor","Air Delivery","130 CFM","to 50","Hoses included.","hour",12.49]
[8013,"Air Compressor","Air Delivery","175 CFM","to 90","Hoses included.","hour",20.98]
[8014,"Air Compressor","Air Delivery","400 CFM","to 145","Hoses included.","hour",32.130000000000003]
[8015,"Air Compressor","Air Delivery","575 CFM","to 230","Hoses included.","hour",57.05]
[8016,"Air Compressor","Air Delivery","1100 CFM","to 355","Hoses included.","hour",95.6]
[8017,"Air Compressor","Air Delivery","1600 CFM","to 500","Hoses included.","hour",98.55]
[8040,"Ambulance",null,null,"to 150",null,"hour",28.09]
[8041,"Ambulance",null,null,"to 210",null,"hour",41.18]
[8050,"Board, Arrow",null,null,"to 8","Trailer Mounted.","hour",4.53]
[8051,"Board, Message",null,null,"to 5","Trailer Mounted.","hour",11.6]
[8060,"Auger, Portable","Hole Diameter","16 In","to 6",null,"hour",2.34]
[8061,"Auger, Portable","Hole Diameter","18 In","to 13",null,"hour",4.6500000000000004]
[8062,"Auger, Tractor Mntd","Max. Auger Diameter","36 In","to 13","Includes digger, boom and\nmounting hardware.","hour",3.25]
[8063,"Auger, Truck Mntd","Max. Auger Size","24 In","to 100","Includes digger, boom and mounting hardware.  Add this rate to tractor rate for total auger and tractor rate.","hour",34.93]
[8064,"Hydraulic Post Driver",null,null,null,null,"hour",35.270000000000003]
[8065,"Auger","Horizontal Directional Boring\nMachine","250 X 100",300,"DD-140B YR-2003","hour",172.29]
[8066,"Auger","Horizontal Directional Boring\nMachine","50 X 100",24,"Average to 7,000 lbs","hour",33.83]
[8067,"Auger, Directional Boring Machine","Auger, Directional Boring Machine","7,000 - 10,000 lbs",45,"JT920L (2013)","hour",41.04]
[8068,"Bush Hog","Bush Hog - Model 326","Single Spindle Rotary Cutters",null,null,"hour",20.61]
["8068-1","Bush Hog","Bush Hog - Model 3210","Lift, Pull, Semi-Mount & Offset Model",null,null,"hour",28.74]
["8068-2","Bush Hog","Bush Hog - Model 2815","Flex Wing Rotary Cutters",null,null,"hour",43.17]
[8070,"Automobile",null,null,"to 130","Transporting people.","mile",0.54500000000000004]
[8071,"Automobile",null,null,"to 130","Transporting cargo.","hour",12.43]
[8072,"Automobile, Police",null,null,"to 250","Patrolling.","mile",0.54500000000000004]
[8073,"Automobile, Police",null,null,"to 250","Stationary with engine running.","hour",16.05]
[8075,"Motorcycle, Police",null,null,null,null,"mile",0.505]
[8076,"Automibile - Chevy Trailblazer","6 or 8 cl",null,"285 to 300",null,"hour",23.99]
[8077,"Automobile - Ford Expedition","Fire Command Center","EcoBoost V-6",360,"2015 Model","hour",19.62]
[8078,"MRAP Armored Rescue Vehicle","Search and Rescue","Military Suplus Vehicle","375-450","Qualified foe operational rate on","Hr.",51.8]
[8079,"MRAP C-MTV","Multi-Theater (Military\nSurplus)Vehicle","gvwr 55000 Lbs","to 350","Qualified foe operational rate on","Hr.",48.35]
[8080,"All Terrain Vehicle (ATV)","Engine 110cc, 4-Wheel; 20\" tyre",null,"6.5-7.5",null,"hour",8.23]
[8081,"All Terrain Vehicle (ATV)","Engine 125cc, 4-Wheel; 21\" tyre",null,"7.6-8.6",null,"hour",8.67]
[8082,"All Terrain Vehicle (ATV)","Engine 150cc, 4-Wheel; 22\" tyre",null,"9.0-10.0",null,"hour",8.68]
[8083,"All Terrain Vehicle (ATV)","Engine 200cc, 4-Wheel; 24\" tyre",null,"12-14.0",null,"hour",9.23]
[8084,"All Terrain Vehicle (ATV)","Engine 250cc, 4-Wheel; 24\" tyre",null,"15-17",null,"hour",9.81]
[8085,"All Terrain Vehicle (ATV)","Engine 300cc, 4-Wheel; 24\" tyre",null,"18-20",null,"hour",10.66]
[8086,"All Terrain Vehicle (ATV)","Engine 400cc. 4-Wheel; 25\" tyre",null,"26-28",null,"hour",12.2]
[8087,"All Terrain Vehicle (ATV)","Engine 450cc, 4-Wheel; 25\" tyre",null,"26-28",null,"hour",13.07]
[8088,"All Terrain Vehicle (ATV)","Engine 650cc, 4-Wheel; 25\" tyre",null,"38-40",null,"hour",13.86]
[8089,"All Terrain Vehicle (ATV)","Engine 750cc, 4-Wheel; 25\" tyre",null,"44-46",null,"hour",14.79]
[8110,"Barge, Deck","Size","50'x35'x7.25'",0,"Push by Tug-Boat","hour",52]
[8111,"Barge, Deck","Size","50'x35'x9'",0,"Push by Tug-Boat","hour",61.96]
[8112,"Barge, Deck","Size","120'x45'x10'",0,"Push by Tug-Boat","hour",109.97]
[8113,"Barge, Deck","Size","160'x45'x11''",0,"Push by Tug-Boat","hour",136.9]
[8120,"Boat, Tow","Size","55'x20'x5'","to 870","Steel.","hour",352.71]
[8121,"Boat, Tow","Size","60'x21'x5'","to 1050","Steel.","hour",400.32]
[8122,"Boat, Tow","Size","70'x30'x7.5'","to 1350","Steel.","hour",624.55999999999995]
[8123,"Boat, Tow","Size","120'x34'x8'","to 2000","Steel.","hour",1181.8599999999999]
[8124,"Airboat","815AGIS Airboat w/spray unit","15'x8'",400,null,"hour",32.700000000000003]
[8125,"Airboat","815AGIS Airboat w/spray unit","15'x8'",425,null,"hour",33.06]
[8126,"Swamp Buggy","Conquest",null,360,null,"hour",41.35]
[8130,"Boat, Row",null,null,0,"Heavy duty.","hour",1.46]
[8131,"Boat, Runabout","Size","13'x5'","to 50","Outboard.","hour",12.55]
[8132,"Boat, Tender","Size","14'x7'","to 100","Inboard with 360 degree drive.","hour",16.579999999999998]
[8133,"Boat, Push","Size","45'x21'x6'","to 435","Flat hull.","hour",235.03]
[8134,"Boat, Push","Size","54'x21'x6'","to 525","Flat hull.","hour",290.74]
[8135,"Boat, Push","Size","58'x24'x7.5'","to 705","Flat hull.","hour",355.7]
[8136,"Boat, Push","Size","64'x25'x8'","to 870","Flat hull.","hour",359.36]
[8140,"Boat, Tug","Length","16 Ft","to 100",null,"hour",47.35]
[8141,"Boat, Tug","Length","18 Ft","to 175",null,"hour",70.55]
[8142,"Boat, Tug","Length","26 Ft","to 250",null,"hour",90.1]
[8143,"Boat, Tug","Length","40 Ft","to 380",null,"hour",215.09]
[8144,"Boat, Tug","Length","51 Ft","to 700",null,"hour",302.01]
[8145,"Jet Ski","3-seater",null,null,null,"hour",27.7]
[8146,"Jet Ski",null,null,null,null,"hour",8.6]
[8147,"Boat, Inflatable Rescue Raft","Zodiac",null,0,null,"hour",1.1299999999999999]
[8148,"Boat, Runabout","1544 lbs","11 passenger capacity","190-250",null,"hour",65.510000000000005]
[8149,"Boat, removable engine","2000 Johnson Outboard Motor w 15\" shaft",null,15,null,"hour",1.58]
[8151,"Broom, Pavement","Broom Length","96 In","to 100",null,"hour",30.41]
[8153,"Broom, Pavement, Mntd","Broom Length","72 In","to 18","Add Prime Mover cost for total\nrate","hour",6.24]
[8154,"Broom, Pavement, Pull","Broom Length","84 In","to 20","Add Prime Mover cost for total\nrate","hour",23.75]
[8155,"Broom, Pavement","Broom Length","72 In","to 35",null,"hour",25.28]
[8157,"Sweeper, Pavement",null,null,"to 110",null,"hour",78.790000000000006]
[8158,"Sweeper, Pavement",null,null,"to 230",null,"hour",102.03]
[8180,"Bus",null,null,"to 150",null,"hour",21.6]
[8181,"Bus",null,null,"to 210",null,"hour",25.82]
[8182,"Bus",null,null,"to 300",null,"hour",39.65]
[8183,"Blower","Gasoline powered Toro Pro Force",null,27,null,"hour",15.4]
["8183x","Mosquito Sprayer","2015 Adapco Guardian 95 ES","15-gal; 350 lbs",null,null,"hour",18.829999999999998]
[8184,"Back-Pack Blower",null,null,"to 4.4",null,"hour",1.53]
[8185,"Walk-Behind Blower",null,null,13,null,"hour",6.83]
[8187,"Chainsaw","Bar Length = 20 in","3.0 cu in",2.7,null,"hour",1.91]
[8188,"Chainsaw","Bar Length = 20 in","5.0 cu in",null,null,"hour",2.59]
[8189,"Chainsaw","Bar Length = 20 in","6.0 cu in",3.4,null,"hour",2.77]
[8190,"Chain Saw","Bar Length = 16 in","2.5 cu in",2.4,null,"hour",1.8]
[8191,"Chain Saw (STIHL)","Bar Length = 25 in","7.5 cu in",3.62,null,"hour",3.73]
[8192,"Chain Saw, Pole","Bar Length = 18 in","4.0 cu in",3.2,null,"hour",2.1]
[8193,"Skidder","model 748 E",null,"to 173",null,"hour",56.25]
[8194,"Skidder","model 648 G11",null,"to 177",null,"hour",105.44]
[8195,"Cutter, Brush","Cutter Size","8 ft","to 150",null,"hour",119.52]
[8196,"Cutter, Brush","Cutter Size","8 ft","to 190",null,"hour",134.74]
[8197,"Cutter, Brush","Cutter Size","10 ft","to 245",null,"hour",142.31]
[8198,"Bruncher Cutter","Cutter, Brush - 247 hp, 1997 Model\n511 Feller",null,"to 247",null,"hour",193.95]
[8199,"Log Trailer","40 ft",null,0,null,"hour",10.15]
[8200,"Chipper, Brush","Chipping Capacity","6 In","to 35","Trailer Mounted.","hour",8.9700000000000006]
[8201,"Chipper, Brush","Chipping Capacity","9 In","to 65","Trailer Mounted.","hour",17.059999999999999]
[8202,"Chipper, Brush","Chipping Capacity","12 In","to 100","Trailer Mounted.","hour",24.89]
[8203,"Chipper, Brush","Chipping Capacity","15 In","to 125","Trailer Mounted.","hour",35.75]
[8204,"Chipper, Brush","Chipping Capacity","18 In","to 200","Trailer Mounted.","hour",50.41]
[8208,"Loader - Tractor -  Knuckleboom","model Barko 595 ML",null,"to 173",null,"hour",169.74]
[8209,"Loader - Wheel","model 210 w/ Buck Saw 50 inch Bar",null,"to 240",null,"hour",98.48]
[8210,"Clamshell & Dragline, Crawler",null,"149,999 lbs","to 235","Bucket not included in rate.","hour",134.68]
[8211,"Clamshell & Dragline, Crawler",null,"250,000 lbs","to 520","Bucket not included in rate.","hour",178.82]
[8212,"Clamshell & Dragline, Truck",null,null,"to 240","Bucket not included in rate.","hour","$          147.05\n$            24.80\n$            28.72"]
[8218,"BOMAG Compactor","BW100AD-3",null,33,null,"Hour"]
[8219,"Compactor -2-Ton Pavement Roller","Single Drum Vibratoty Compactor","to 2.9 Ton",28,null,"hour"]
[8220,"Compactor",null,null,"to 10",null,"hour",15.92]
[8221,"Compactor, towed, Vibratory Drum",null,null,"to 45","Plus tow Truck","hour",33.56]
[8222,"Compactor, Vibratory, Drum",null,null,"to 75",null,"hour",24.09]
[8223,"Compactor, pneumatic, wheel",null,null,"to 100",null,"hour",26.9]
[8225,"Compactor, Sanitation",null,null,"to 300",null,"hour",96.11]
[8226,"Compactor, Sanitation",null,null,"to 400",null,"hour",154.63]
[8227,"Compactor, Sanitation",null,null,535,null,"hour",264.25]
[8228,"Compactor, towed, Pneumatic, Wheel","Hercules PT-11,","10,000 lbs",null,"11-Wheels (Towed)","hour",18.48]
[8229,"Compactor,Towed Steel Drum Static\nCompactor","GTD-54120","20,000 lbs",null,"Grid Drum (Towed)","hour",16.22]
[8240,"Feeder, Grizzly",null,null,"to 35",null,"hour",25.47]
[8241,"Feeder, Grizzly",null,null,"to 55",null,"hour",33.549999999999997]
[8242,"Feeder, Grizzly",null,null,"to 75",null,"hour",65.180000000000007]
[8250,"Dozer, Crawler","Deere 450J LT",null,"to 75",null,"hour",54.2]
[8251,"Dozer, Crawler","Deere 650K LGP; ROPS/FOPS",null,"to 105",null,"hour",65.14]
[8252,"Dozer, Crawler",null,null,"to 160",null,"hour",98.77]
[8253,"Dozer, Crawler",null,null,"to 250",null,"hour",153.35]
[8254,"Dozer, Crawler",null,null,"to 360",null,"hour",218.47]
[8255,"Dozer, Crawler","Make/Model: CAT D10T (disc. 2014);\nProtection: EROPS; Type Semi-U",null,"to 574",null,"hour",317.49]
[8256,"Dozer, Crawler",null,null,"to 850",null,"hour",358.48]
[8260,"Dozer, Wheel",null,null,"to 300",null,"hour",66.260000000000005]
[8261,"Dozer, Wheel",null,null,"to 400",null,"hour",101.22]
[8262,"Dozer, Wheel",null,null,"to 500",null,"hour",184.08]
[8263,"Dozer, Wheel",null,null,"to 625",null,"hour",239.31]
[8269,"Box Scraper","3 hitch attach for tractor; 2007 Befco",null,0,null,"hour",3.65]
[8270,"Bucket, Clamshell","Capacity","1.0 CY",0,"Includes teeth. Does not include\nClamshell & Dragline","hour",4.6399999999999997]
[8271,"Bucket, Clamshell","Capacity","2.5 CY",0,"Includes teeth. Does not include\nClamshell & Dragline","hour",8.81]
[8272,"Bucket, Clamshell","Capacity","5.0 CY",0,"Includes teeth. Does not include\nClamshell & Dragline","hour",13.19]
[8273,"Bucket, Clamshell","Capacity","7.5 CY",0,"Includes teeth. Does not include\nClamshell & Dragline","hour",23.31]
[8275,"Bucket, Dragline","Capacity","2.0 CY",0,"Does not include Clamshell &\nDragline","hour",3.98]
[8276,"Bucket, Dragline","Capacity","5.0 CY",0,"Does not include Clamshell &\nDragline","hour",9.93]
[8277,"Bucket, Dragline","Capacity","10 CY",0,"Does not include Clamshell &\nDragline","hour",14.19]
[8278,"Bucket, Dragline","Capacity","14 CY",0,"Does not include Clamshell &\nDragline","hour",18.72]
[8280,"Excavator, Hydraulic","Bucket Capacity","0.5 CY","to 45","Crawler, Truck & Wheel.\nIncludes bucket.","hour",18.97]
[8281,"Excavator, Hydraulic","Bucket Capacity","1.0 CY","to 90","Crawler, Truck & Wheel.\nIncludes bucket.","hour",36.06]
[8282,"Excavator, Hydraulic","Bucket Capacity","1.5 CY","to 160","Crawler, Truck & Wheel.\nIncludes bucket.","hour",55.3]
[8283,"Excavator, Hydraulic","Bucket Capacity","2.5 CY","to 265","Crawler, Truck & Wheel.\nIncludes bucket.","hour",158.86000000000001]
[8284,"Excavator, Hydraulic","Bucket Capacity","4.5 CY","to 420","Crawler, Truck & Wheel.\nIncludes bucket.","hour",264.64]
[8285,"Excavator, Hydraulic","Bucket Capacity","7.5 CY","to 650","Crawler, Truck & Wheel.\nIncludes bucket.","hour",304.91000000000003]
[8286,"Excavator, Hydraulic","Bucket Capacity","12 CY","to 1000","Crawler, Truck & Wheel.\nIncludes bucket.","hour",466.41]
[8287,"Excavator","2007 model Gradall XL3100 III",null,184,null,"hour",102.62]
[8288,"Excavator","2003 model Gradall XL4100 III",null,238,null,"hour",117.66]
[8289,"Excavator","2006 model Gradall XL5100",null,230,null,"hour",109.03]
[8290,"Trowel, Concrete","Diameter","48 In","to 12",null,"hour",4.9400000000000004]
[8300,"Fork Lift","Capacity","6000 Lbs","to 60",null,"hour",14.73]
[8301,"Fork Lift","Capacity","12000 Lbs","to 90",null,"hour",21.12]
[8302,"Fork Lift","Capacity","18000 Lbs","to 140",null,"hour",28.79]
[8303,"Fork Lift","Capacity","50000 Lbs","to 215",null,"hour",63.25]
[8306,"Fork Lift  Material handler","Diesel, CAT TH360B","6600-11500 gvwr lbs",94.9,"3.1- 3.5 Mton","hour",44.62]
[8307,"Fork Lift Material handler","Diesel, CAT TH460B","9000 Lbs",94.9,"4.5 - 4.9 Mton","hour",51.93]
[8308,"Fork Lift Material handler","Diesel, CAT TH560B","10000 Lbs",117.5,"4.5 - 4.9 Mton","hour",56.14]
[8309,"Fork Lift Accessory","2003 ACS Paddle Fork",null,0,null,"hour",3.53]
[8310,"Generator","Prime Output","5.5 KW","to 10",null,"hour",5.36]
[8311,"Generator","Prime Output","16 KW","to 25",null,"hour",7.81]
[8312,"Generator","Prime Output","60KW","to 88",null,"hour",25.56]
[8313,"Generator","Prime Output","100 KW","to 125",null,"hour",43.6]
[8314,"Generator","Prime Output","150 KW","to 240",null,"hour",62.83]
[8315,"Generator","Prime Output","210 KW","to 300",null,"hour",85.7]
[8316,"Generator","Prime Output","280 KW","to 400",null,"hour",103.34]
[8317,"Generator","Prime Output","350 KW","to 500",null,"hour",114.23]
[8318,"Generator","Prime Output","530 KW","to 750",null,"hour",202]
[8319,"Generator","Prime Output","710 KW","to 1000",null,"hour",225.34]
[8327,"Generator","Prime Output","800 KW",1065,null,"hour",232.46]
[8328,"Generator","Prime Output","900 KW",1355,null,"hour",295.14999999999998]
[8329,"Generator","Prime Output","1000 KW",1000,"Open","hour",356.94]
[8320,"Generator","Prime Output","1100 KW",1645,"Open","hour",393.43]
[8321,"Generator","Prime Output","2500 KW","to 3000",null,"hour",553.78]
[8322,"Generator","Prime Output","1,000 KW","to 1645","Enclosed","hour",450.78]
[8323,"Generator","Prime Output","1,500 KW","to 2500","Enclosed","hour",583.01]
[8324,"Generator","Prime Output","1100KW",2500,"Enclosed","hour",567.48]
[8325,"Generator","Prime Output","40KW",63,"Open","hour",23.16]
[8326,"Generator","Prime Output","20KW",35,"Open/Closeed","hour",18.05]
[8327,"Generator Large","Prime Output","80 KW",120,null,"Hr.",31.65]
[8328,"Generator Heavy Duty","Prime Output","2000KW",null,"Open","Hr.",490]
[8330,"Graders","Moldboard Size","10 Ft","to 110","Includes Rigid and Articulate\nequipment.","hour",43.98]
[8331,"Graders","Moldboard Size","12 Ft","to 150","Includes Rigid and Articulate\nequipment.","hour",63.63]
[8332,"Graders","Moldboard Size","14 Ft","to 225","Includes Rigid and Articulate\nequipment.","hour",80.430000000000007]
[8350,"Hose, Discharge","Diameter","3 In",0,"Per 25 foot length. Includes\ncouplings.","hour",0.16]
[8351,"Hose, Discharge","Diameter","4 In",0,"Per 25 foot length. Includes\ncouplings.","hour",0.24]
[8352,"Hose, Discharge","Diameter","6 In",0,"Per 25 foot length. Includes\ncouplings.","hour",0.62]
[8353,"Hose, Discharge","Diameter","8 In",0,"Per 25 foot length. Includes\ncouplings.","hour",0.62]
[8354,"Hose, Discharge","Diameter","12 In",0,"Per 25 foot length. Includes\ncouplings.","hour",0.92]
[8355,"Hose, Discharge","Diameter","16 In",0,"Per 25 foot length. Includes\ncouplings.","hour",1.71]
[8356,"Hose, Suction","Diameter","3 In",0,"Per 25 foot length. Includes\ncouplings.","hour",0.31]
[8357,"Hose, Suction","Diameter","4 In",0,"Per 25 foot length. Includes\ncouplings.","hour",0.37]
[8358,"Hose, Suction","Diameter","6 In",0,"Per 25 foot length. Includes\ncouplings.","hour",1.17]
[8359,"Hose, Suction","Diameter","8 In",0,"Per 25 foot length. Includes\ncouplings.","hour",1.1100000000000001]
[8360,"Hose, Suction","Diameter","12 In",0,"Per 25 foot length. Includes\ncouplings.","hour",1.73]
[8361,"Hose, Suction","Diameter","16 In",0,"Per 25 foot length. Includes\ncouplings.","hour",3.29]
[8380,"Loader, Crawler","Bucket Capacity","0.5 CY","to 32","Includes bucket.","hour",19.59]
[8381,"Loader, Crawler","Bucket Capacity","1 CY","to 60","Includes bucket.","hour",36.869999999999997]
[8382,"Loader, Crawler","Bucket Capacity","2 CY","to 118","Includes bucket.","hour",69.239999999999995]
[8383,"Loader, Crawler","Bucket Capacity","3 CY","to 178","Includes bucket.","hour",103.22]
[8384,"Loader, Crawler","Bucket Capacity","4 CY","to 238","Includes bucket.","hour",123.73]
[8390,"Loader, Wheel","Bucket Capacity","0.5 CY","to 38",null,"hour",20.8]
[8391,"Loader, Wheel","Bucket Capacity","1 CY","to 60",null,"hour",41.33]
[8392,"Loader, Wheel","Bucket Capacity","2 CY","to 105","CAT-926","hour",38.1]
[8393,"Loader, Wheel","Bucket Capacity","3 CY","to 152",null,"hour",46.17]
[8394,"Loader, Wheel","Bucket Capacity","4 CY",232,null,"hour",76.27]
[8395,"Loader, Wheel","Bucket Capacity","5 CY",255,null,"hour",79.5]
[8396,"Loader, Wheel","Bucket Capacity","6 CY","to 305",null,"hour",116.12]
[8397,"Loader, Wheel","Bucket Capacity","7 CY","to 360",null,"hour",129.4]
[8398,"Loader, Wheel","Bucket Capacity","8 CY","to 530",null,"hour",188.87]
[8401,"Loader, Tractor, Wheel","Bucket Capacity","0.87 CY","to 80","Case 580 Super L","hour",37.130000000000003]
[8410,"Mixer, Concrete Portable","Batching Capacity","10 Cft",8,"Diesel Powered","hour",3.13]
[8411,"Mixer, Concrete Portable","Batching Capacity","12 Cft",11,"Gasoline Powered","hour",4.3099999999999996]
[8412,"Mixer, Concrete, Trailer Mntd","Batching Capacity","11 Cft","to 10",null,"hour",15.32]
[8413,"Mixer, Concrete, Trailer Mntd","Batching Capacity","16 Cft","to 25",null,"hour",20.47]
[8414,"Truck, Concrete Mixer","Mixer Capacity","13 CY","to 300",null,"hour",84.71]
[8419,"Hand-Held, Pavement Breakers","Weight","25~90 Lbs",0,"Air Tool/Electric Power","hour",1.1200000000000001]
[8420,"Self-Propelled Pavement Breaker,",null,null,"to 70-80","Self-Propelled (Diesel)","hour",59.54]
[8421,"Vibrator, Concrete","Hand Held",null,"to 4",null,"hour",1.63]
[8423,"Spreader, Chip","Spread Hopper Width","12.5 Ft","to 152",null,"hour",90.67]
[8424,"Spreader, Chip","Spread Hopper Width","16.5 Ft","to 215",null,"hour",125.19]
[8425,"Spreader, Chip, Mntd","Hopper Size","8 Ft","to 8","Trailer & truck mounted.","hour",4.7699999999999996]
[8430,"Paver, Asphalt, Towed",null,null,0,"Does not include Prime Mover.","hour",12.67]
[8431,"Paver, Asphalt","Crawler",null,"to 50","Includes wheel and crawler\nequipment.","hour",76.41]
[8432,"Paver, Asphalt","Crawler",null,"to 125","Includes wheel and crawler\nequipment.","hour",96.52]
[8433,"Paver, Asphalt","Crawler",null,"to 175","Includes wheel and crawler\nequipment.","hour",144.69]
[8434,"Paver, Asphalt",null,"35,000Lbs & Over","to 250","Includes wheel and crawler\nequipment.","hour",224.01]
[8436,"Pick-up, Asphalt",null,null,"to 110",null,"hour",98.06]
[8437,"Pick-up, Asphalt","Cederapids","CR MS-2","113 to 140","Asphalt-Pick-up Machine","hour",140.59]
[8438,"Pick-up, Asphalt","Blaw-Knox","MC-330","184 to 200","Asphalt-Pick-up Machine","hour",189.75]
[8439,"Pick-up, Asphalt",null,"MTV 1000C","to 275","Asphalt-Pick-up Machine","hour",214.03]
[8440,"Striper","Paint Capacity","40 Gal","to 22",null,"hour",16.920000000000002]
[8441,"Striper","Paint Capacity","90 Gal","to 60",null,"hour",24.24]
[8442,"Striper","Paint Capacity","120 Gal","to 122",null,"hour",45.28]
[8445,"Striper, Truck Mntd","Paint Capacity","120 Gal","to 460",null,"hour",83.35]
[8446,"Striper, Walk-behind","Paint Capacity","12 Gal",5,null,"hour",4.2300000000000004]
[8447,"Paver accessory -Belt Extension","2002 Leeboy Conveyor Belt\nExtension","24' X 50'",0,"crawler","hour",33.479999999999997]
[8450,"Plow, Snow, Grader Mntd","Width","to 10 Ft",0,"Include Grader for total cost","hour",28.28]
[8451,"Plow, Snow, Grader Mntd","Width","to 14 Ft",0,"Include Grader for total cost","hour",33.21]
[8452,"Plow, Truck Mntd","Width","to 15 Ft",0,"Include truck for total cost","hour",25.23]
[8453,"Plow, Truck Mntd","Width","to 15 Ft",0,"With leveling wing. Include\ntruck for total cost","hour",41.04]
[8455,"Spreader, Sand","Mounting","Tailgate, Chassis",0,"Truck not included","hour",8.24]
[8456,"Spreader, Sand","Mounting","Dump Body",0,"Truck not included","hour",10.55]
[8457,"Spreader, Sand","Mounting","Truck (10yd)",0,"Truck not included","hour",13.41]
[8458,"Spreader, Chemical","Capacity","5 CY","to 4","Trailer & truck mounted.","hour",6.3]
[8469,"Pump -  Trash Pump","10 MTC","2\" Pump","to 7","10,000 gph","hour",7.87]
[8470,"Pump","Centrifugal, 8M pump","2\" - 10,000 gal/hr.","to 4.5","Hoses not included.","hour",6.31]
[8471,"Pump","Diaphragm pump","2\" - 3,000 gal/hr.","to 6","Hoses not included.","hour",6.98]
[8472,"Pump","Centrifugal, 18M pump","3\" - 18,000 gal/hr. pump","to 10","Hoses not included.","hour",8.0500000000000007]
[8473,"Pump",null,null,"to 15","Hoses not included.","hour",12.08]
[8474,"Pump",null,null,"to 25","Hoses not included.","hour",13.77]
[8475,"Pump",null,null,"to 40","Hoses not included.","hour",16.98]
[8476,"Pump","4\" - 40,000 gal/hr.","4\" - 40,000 gal/hr.","to 60","Hoses not included.","hour",27.45]
[8477,"Pump",null,null,"to 95","Hoses not included.","hour",32.770000000000003]
[8478,"Pump",null,null,"to 140","Hoses not included.","hour",41.84]
[8479,"Pump",null,null,"to 200","Hoses not included.","hour",50.79]
[8480,"Pump",null,null,"to 275","Does not include Hoses.","hour",68.33]
[8481,"Pump",null,null,"to 350","Does not include Hoses.","hour",81.66]
[8482,"Pump",null,null,"to 425","Does not include Hoses.","hour",99.01]
[8483,"Pump",null,null,"to 500","Does not include Hoses.","hour",117.21]
[8484,"Pump",null,null,"to 575","Does not include Hoses.","hour",136.53]
[8485,"Pump",null,null,"to 650","Does not include Hoses.","hour",154.88]
[8486,"Aerial Lift, Truck Mntd","Max. Platform Height","40 Ft",null,"Add this rate to truck rate for\ntotal lift and truck rate","hour",11.63]
[8487,"Aerial Lift, Truck Mntd","Max. Platform Height","61 Ft",null,"Add this rate to truck rate for\ntotal lift and truck rate","hour",21.99]
[8488,"Aerial Lift, Truck Mntd","Max. Platform Height","80 Ft",null,"Add this rate to truck rate for\ntotal lift and truck rate","hour",39.799999999999997]
[8489,"Aerial Lift, Truck Mntd","Max. Platform Load - 600Lbs","81 Ft -100 Ft. Ht.",null,"Articulated and Telescoping.\nAdd this rate to truck rate for total lift and truck rate","hour",42.16]
[8490,"Aerial Lift, Self-Propelled","Max. Platform Height","37 Ft. Ht.","to 15","Articulated, Telescoping,\nScissor.","hour",9.02]
[8491,"Aerial Lift, Self-Propelled","Max. Platform Height","60 Ft. Ht.","to 30","Articulated, Telescoping,\nScissor.","hour",17.39]
[8492,"Aerial Lift, Self-Propelled","Max. Platform Height","70 Ft. Ht.","to 50","Articulated, Telescoping,\nScissor.","hour",31.57]
[8493,"Aerial Lift, Self-Propelled","Max. Platform Height","125 Ft. Ht.","to 85","Articulated and Telescoping.","hour",56.7]
[8494,"Aerial Lift, Self-Propelled","Max. Platform Height","150 Ft. Ht.","to 130","Articulated and Telescoping.","hour",73.900000000000006]
[8495,"I.C. Aerial Lift, Self-Propelled","Max. Platform Load - 500 Lbs","75\"x155\", 40Ft Ht.","to 80","2000 Lbs Capacity","hour",29.71]
[8496,"Crane, Truck Mntd","Max. Lift Capacity","24000 Lbs",0,"Include truck rate for total cost","hour",16.54]
[8497,"Crane, Truck Mntd","Max. Lift Capacity","36000 Lbs",0,"Include truck rate for total cost","hour",23.17]
["8498\n8499\n8500","Crane, Truck Mntd","Max. Lift Capacity","60000 Lbs",0,"Include truck rate for total cost","hour",37.46]
[null,"Pump - Trash-Pump","CPB Rating - 10MTC","10000 gal/Hr",7,"Self- Priming Trash Pump","hour",7.76]
[null,"Crane","Max. Lift Capacity","8 MT","to 80",null,"hour",40.75]
[8501,"Crane","Max. Lift Capacity","15 MT","to 150",null,"hour",67.83]
[8502,"Crane","Max. Lift Capacity","50 MT","to 200",null,"hour",93.95]
[8503,"Crane","Max. Lift Capacity","70 MT","to 300",null,"hour",180.23]
[8504,"Crane","Max. Lift Capacity","110 MT","to 350",null,"hour",258.23]
[8510,"Saw, Concrete","Blade Diameter","14 In","to 14",null,"hour",7.62]
[8511,"Saw, Concrete","Blade Diameter","26 In","to 35",null,"hour",12.47]
[8512,"Saw, Concrete","Blade Diameter","48 In","to 65",null,"hour",26.81]
[8513,"Saw, Rock","Blade Diameter",null,"to 100",null,"hour",35.130000000000003]
[8514,"Saw, Rock","Blade Diameter",null,"to 200",null,"hour",68.849999999999994]
[8517,"Jackhammer (Dry)","Weight Class","25-45 Lbs",0,"Pneumatic Powered","hour",1.77]
[8518,"Jackhammer (Wet)","Weight Class","30-55 Lbs",0,"Pneumatic Powered","hour",2.02]
[8521,"Scraper","Scraper Capacity","15 CY","to 262",null,"hour",133.80000000000001]
[8522,"Scraper","Scraper Capacity","22 CY","to 365",null,"hour",174.3]
[8523,"Scraper","Scraper Capacity","34 CY","to 500",null,"hour",322.77]
[8524,"Scraper","Scraper Capacity","44 CY","to 604",null,"hour",354.84]
[8540,"Loader, Skid-Steer","Operating Capacity","976 - 1250 Lbs","to 36",null,"hour",26.83]
[8541,"Loader, Skid-Steer","Operating Capacity","1751 - 2200 Lbs","to 66",null,"hour",35.47]
[8542,"Loader, Skid-Steer","Operating Capacity","2901 to 3300 Lbs","to 81",null,"hour",38.72]
[8550,"Snow Blower, Truck Mntd","Capacity","600 Tph","to 75","Does not include truck","hour",35.39]
[8551,"Snow Blower, Truck Mntd","Capacity","1400 Tph","to 200","Does not include truck","hour",94.72]
[8552,"Snow Blower, Truck Mntd","Capacity","2000 Tph","to 340","Does not include truck","hour",143.88]
[8553,"Snow Blower, Truck Mntd","Capacity","2500 Tph","to 400","Does not include truck","hour",156.93]
[8558,"Snow Thrower, Walk Behind","Cutting Width","25 in","to 5",null,"hour",2.97]
[8559,"Snow Thrower, Walk Behind","Cutting Width","60 in","to 15",null,"hour",14.47]
[8560,"Snow Blower","Capacity","2,000 Tph","to 400",null,"hour",234.49]
[8561,"Snow Blower","Capacity","2,500 Tph","to 500",null,"hour",256.2]
[8562,"Snow Blower","Capacity","3,500 Tph","to 600",null,"hour",285.56]
[8563,"The Vammas 4500","Snow Remover","26ft Plow, 20ft Broom + Airblast",428,"Equip with Plow & Broom","hour",260]
[8564,"The Vammas 5500","RM300","96\"W x 20\"D",350,"Soil Stabilization, Reclaimer","hour",212]
[8565,"Oshkosh Pavement Sweeper","H-Series",null,420,"Equip with Broom","hour",229]
[8569,"Dust Control De-Ice Unit","1300-2000 gal","173\"Lx98\"Wx51\"H",5.5,"Hydro Pump w/100' 1/2\" hose","hour",3.54]
[8570,"Loader-Backhoe, Wheel","Loader Bucket Capacity","0.5 CY","to 40","Loader and Backhoe Buckets\nincluded.","hour",23.95]
[8571,"Loader-Backhoe, Wheel","Loader Bucket Capacity","1 CY","to 70","Loader and Backhoe Buckets\nincluded.","hour",33.36]
[8572,"Loader-Backhoe, Wheel","Loader Bucket Capacity","1.5 CY","to 95","Loader and Backhoe Buckets\nincluded.","hour",43.46]
[8573,"Loader-Backhoe, Wheel","Loader Bucket Capacity","1.75 CY","to 115","Loader and Backhoe Buckets\nincluded.","hour",49.55]
[8580,"Distributor,  Asphalt","Tank Capacity Mounted on Trailer","550 Gal",16,"burners, insulated tank, and\ncirculating spray bar.","hour",14.97]
[8581,"Distributor,  Asphalt","Tank Capacity Mounted on Trailer","1000 Gal",38,"Truck Mounted. Includes burners, insulated tank, and circulating spray bar.  Include truck rate.","hour",22.45]
[8582,"Distributor,  Asphalt","Tank Capacity Mounted on Truck","4000 Gal",null,"Truck Mounted. Includes burners, insulated tank, and circulating spray bar.  Include truck rate.","hour",32.520000000000003]
[8583,"Distributor","ETNYRE Oil Distributor Model - PB348",null,300,null,"hour",43.57]
[8584,"Distributor","ETNYRE Quad Chip Spreader",null,280,null,"hour",90.67]
[8590,"Trailer, Dump","Capacity","20 CY",0,"Does not include Prime Mover.","hour",13.13]
[8591,"Trailer, Dump","Capacity","30 CY",0,"Does not include Prime Mover.","hour",13.37]
[8600,"Trailer, Equipment","Capacity","30 Tons",0,null,"hour",16.71]
[8601,"Trailer, Equipment","Capacity","40 Tons",0,null,"hour",18.489999999999998]
[8602,"Trailer, Equipment","Capacity","60 Tons",0,null,"hour",19.3]
[8603,"Trailer, Equipment","Capacity","120 Tons",0,null,"hour",30.52]
[8610,"Trailer, Water","Tank Capacity","4000 Gal",0,"Includes a centrifugal pump with\nsump and a rear spraybar.","hour",15.85]
[8611,"Trailer, Water","Tank Capacity","6000 Gal",0,"Includes a centrifugal pump with\nsump and a rear spraybar.","hour",19.489999999999998]
[8612,"Trailer, Water","Tank Capacity","10000 Gal",0,"Includes a centrifugal pump with\nsump and a rear spraybar.","hour",22.76]
[8613,"Trailer, Water","Tank Capacity","14000 Gal",0,"Includes a centrifugal pump with\nsump and a rear spraybar.","hour",28.39]
[8614,"Truck- Water Tanker","1000 gal. tank",null,175,null,"hour",35.840000000000003]
[8620,"Tub Grinder",null,null,"to 440",null,"hour",98.3]
[8621,"Tub Grinder",null,null,"to 630",null,"hour",148.62]
[8622,"Tub Grinder",null,null,"to 760",null,"hour",189.56]
[8623,"Tub Grinder",null,null,"to 1000",null,"hour",332.79]
[8627,"Horizontal Grinder","Model HG6000",null,630,null,"hour",59.12]
[8628,"Stump Grinder","1988 Vermeer SC-112",null,102,null,"hour",48.59]
[8629,"Stump Grinder","24\" grinding wheel",null,110,null,"hour",46.31]
[8630,"Sprayer, Seed","Working Capacity","750 Gal","to 30","Trailer & truck mounted.  Does\nnot include Prime Mover.","hour",14.78]
[8631,"Sprayer, Seed","Working Capacity","1250 Gal","to 50","Trailer & truck mounted.  Does\nnot include Prime Mover.","hour",19.739999999999998]
[8632,"Sprayer, Seed","Working Capacity","3500 Gal","to 115","Trailer & truck mounted.  Does\nnot include Prime Mover.","hour",32.520000000000003]
[8633,"Mulcher, Trailer Mntd","Working Capacity","7 TPH","to 35",null,"hour",15.59]
[8634,"Mulcher, Trailer Mntd","Working Capacity","10 TPH","to 55",null,"hour",23.12]
[8635,"Mulcher, Trailer Mntd","Working Capacity","20 TPH","to 120",null,"hour",33.58]
[8636,"Scraper","Soil Recycler WR 2400","w 317 gal fuel tank",563,null,"hour",265.76]
[8637,"Trailer CAT","Double Belly Bottom-dump Trailer","26 CY of soil in one dump",330,"13 CY  of soil each berry","hour",95.1]
[8638,"Rake","Barber Beach Sand Rake 600HDr,\ntowed",null,0,"Towed by Beach vehicle","hour",15.78]
[8639,"Chipper","Wildcat 626 Cougar Trommel Screen\nchipper w belt",null,125,null,"hour",35.380000000000003]
[8640,"Trailer, Office","Trailer Size","8' x 24'",0,"Cargo Size 16ft","hour",2.31]
[8641,"Trailer, Office","Trailer Size","8' x 32'",0,"Cargo Size 24ft","hour",2.76]
[8642,"Trailer, Office","Trailer Size","10' x 32'",0,"Cargo Size 20ft","hour",3.69]
[8643,"Trailer","Haz-Mat Equipment trailer","8'x18'",0,"Move by Tractor to Location","hour",38.880000000000003]
[8644,"Trailer, Covered Utility Trailer","(7’ X  16’)",null,0,"Move by Tractor to Location","hour",5.88]
[8645,"Trailer, Dodge Ram","8' x 24' shower trailer- 12 showers",null,101,null,"hour",30.33]
[8646,"Trailer, Dodge","8' x 32’ flatbed water","25,000 MGVW",200,"4x2-Axle","hour",28.6]
[8650,"Trencher",null,null,"to 40","Walk-behind, Crawler & Wheel\nMounted. Chain and Wheel.","hour",16.91]
[8651,"Trencher",null,null,"to 85","Walk-behind, Crawler & Wheel\nMounted. Chain and Wheel.","hour",29.53]
[8654,"Trencher accessories","2008 Griswold Trenchbox",null,0,null,"hour",1.96]
[8660,"Plow, Cable","Plow Depth","24 in","to 30",null,"hour",13.77]
[8661,"Plow, Cable","Plow Depth","36 in","to 65",null,"hour",40.07]
[8662,"Plow, Cable","Plow Depth","48 in","to 110",null,"hour",44.6]
[8670,"Derrick, Hydraulic Digger","Max. Boom = 60 Ft, 12,000 Ft-Lb Hydraulic","Lift Capacity 15,500 Lbs",275,"Includes hydraulic pole alignment attachment.  Include truck rate","hour",35.07]
[8671,"Derrick, Hydraulic Digger","Max. Boom = 90 Ft, 14000 Ft-Lb Hydraulic","Lift Capacity 26,700 Lbs",310,"Includes hydraulic pole alignment attachment.  Include truck rate","hour",56.12]
["8672\n8680\n8681\n8682\n8683","Movax SP-60","28-32 ton Head","134KW",178,"Sonic Sidegrip Vibratory Pile\nDriver","Hour",109.2]
[null,"Truck, Fire -Industrial -112Ft Ladder\nAerial Platform","Pump/Tank Capacity","3000gpm/1000 gal Water or Foam",600,"2-1000gpm Nozzles 1-Each\nside of Platform","Hour",198.3]
[null,"Truck, Fire, Engine Type-1","Pump/Tank Capacity","1000GPM/300gal",null,"Engine, with Pump & Roll","hour",140]
[null,"Truck, Fire, Engine Type-2","Pump/Tank Capacity","500GPM/300gal",null,"Engine, with Pump & Roll","hour",132]
[null,"Truck, Fire, Ladder(48ft)(Type-III)","Pump/Tank Capacity","150gpm/500gal,","115-149","Hose 1-1/2\"D 500' Long","hour",119.3]
[8684,"Truck, Fire, Aerial (Cummins\nIXL9)100Ft Ladder","Pump/Tank Capacity","2000gpm/500gal",450,"1500gpm Monitor/nozzle","hour",178]
[8685,"Truck, Fire, Ladder(48ft)(Type-I)","Pump/Tank Capacity","1000gpm/400gal, 500gpm Master\nStream","200-250","Hose 2-1/2\"D 1200' Long","hour",154]
[8686,"Truck, Fire, Ladder(48ft)(Type-II)","Pump/Tank Capacity","500gpm/300gal,","100-199","Hose 2-1/2\"D 1000' Long","hour",131.5]
[8687,"Truck, Fire, Support Water Tender S1","Pump/Tank Capacity","300GPM/4000+gal","115-149","S1 Water Tender","hour",114.5]
[8688,"Truck, Fire, Support Water Tender S2","Pump/Tank Capacity","200GPM/2500+gal",null,"S2 Water Tender","hour",103.5]
[8689,"Truck, Fire, Support Water Tender S3","Pump/Tank Capacity","200GPM/1000+gal",null,"S3 Water Tender","hour",79]
[8690,"Truck, Fire - Water Tender","Pump Capacity","1000 GPM @150 psi",null,null,"hour",70.33]
[8691,"Truck, Fire, Tanker","Pump/Tank Capacity","1250 GPM/2500 gal",500,null,"hour",74.569999999999993]
[8692,"Truck, Fire, Pumper","Pump/Tank Capacity","1500 GPM/1000 gal",500,null,"hour",81.099999999999994]
[8693,"Truck, Fire, Pumper","Pump Capacity","2000 GPM",null,null,"hour",84.04]
[8694,"Truck, Fire Aerial Ladder (75Ft)","Pump/Tank Capacity","1500GPM/600 gal",475,null,"hour",121]
[8695,"Truck, Fire Aerial Ladder (150Ft)","Ladder length","150 FT",null,"No Platform,","hour",146.43]
[8696,"Truck, Fire (Rescure)","No Ladder",null,330,"Rescure Equipment","hour",96.36]
[8697,"Truck, Fire, Tactical Water Tender T1","Pump/Tank Capacity","250GPM/2000+gal",175,null,"hour",119.5]
[8698,"Truck, Fire, Tactical Water Tender T2","Pump/Tank Capacity","250GPM/1000+gal",null,null,"hour",102.67]
[8699,"Truck, Fire, Engine Type-3","Pump/Tank Capacity","150GPM/500gal",null,"Engine, with Pump & Roll","hour",126.5]
[8700,"Truck, Flatbed","Maximum Gvw","15000 Lbs","to 200","Diesel Engine","hour",25.46]
[8701,"Truck, Flatbed","Maximum Gvw","25000 Lbs","to 275","Gasoline Engine","hour",40.36]
["8701-1","Truck, Flatbed","Maximum Gvw","25000 Lbs",200,"Diesel Engine","hour",28.55]
[8702,"Truck, Flatbed","Maximum Gvw","30000 Lbs",217,"Diesel Engine","hour",32.9]
[8703,"Truck, Flatbed","Maximum Gvw","45000 Lbs","to 380","Diesel Engine","hour",52.73]
[8708,"Trailer, semi","48ft to 53ft, flat-bed, freight, two axle","50,000+ gvwr",0,null,"hour",8.67]
[8709,"Trailer, semi","enclosed 48 ft to 53 ft, two axles","50,000+ gvwr",0,"Enclosed","hour",9.82]
[8710,"Trailer, semi","28ft, single axle, freight","25,000 gvwr",0,null,"hour",10.01]
[8711,"Flat bed utility trailer","6 ton",null,0,null,"hour",3.21]
[8712,"Cleaner, Sewer/Catch Basin","Hopper Capacity","5 CY",50,"Truck Mounted. (350 gal)","hour",25.51]
[8713,"Cleaner, Sewer/Catch Basin","Hopper Capacity","14 CY",60,"Truck Mounted. (1500 Gal)","hour",32.020000000000003]
[8714,"Vactor-Combined Sewer Cleaning","800 Gal Spoils/400 Gal Water","500/800 gal",190,"with water & waste Tanks","hour","$            85.10\n$            86.94"]
["8714-1","Vector Combine Vaccum Truck","1500 gal Water","15 Cu Yd",330,"with water & waste Tanks","hour"]
[8715,"Truck, Hydro Vac","model LP555DT","36 - Hp pump",36,"Towed by tractor","hour",18.5]
[8716,"Leaf Vac","Tow by Truck 22,000 cfm capacity",null,85,"Leaf Vac + Truck Code 8811","hour",52.93]
[8717,"Truck, Vacuum","60,000 GVW",null,400,null,"hour",76.72]
[8719,"Litter Picker","model 2007 Barber",null,0,"Towed by tractor","hour",9.6]
[8720,"Truck, Dump","Struck Capacity","8 CY","to 220",null,"hour",57.7]
[8721,"Truck, Dump","Struck Capacity","10 CY","to 320",null,"hour",72.05]
[8722,"Truck, Dump","Struck Capacity","12 CY","to 400",null,"hour",79.62]
[8723,"Truck, Dump","Struck Capacity","14 CY","to 400",null,"hour",77.5]
[8724,"Truck, Dump, Off Highway","Struck Capacity","28 CY","to 450",null,"hour",136.57]
[8725,"Truck, Dump","Struck Capacity","18 CY","to 400",null,"hour",91.65]
[8730,"Truck, Garbage","Capacity","25 CY","to 255",null,"hour",49.79]
[8731,"Truck, Garbage","Capacity","32 CY","to 325",null,"hour",57.06]
[8733,"E-BAM Services","Environmental Beta Attenuation Air\nMonitor",null,0,"Powered by Solar System","hour",3.07]
[8734,"Attenuator, safety","that can stop a vehicle at 60 mph",null,0,null,"hour",5.64]
[8735,"Truck, Attenuator","2004 Truck Mounted for 60 mph",null,0,null,"hour",3.89]
[8736,"Truck, tow","1987 Chevy Kodiak 70",null,175,null,"hour",28.73]
[8744,"Van, Custom","Special Service Canteen Truck",null,350,null,"hour",18.350000000000001]
[8745,"Van, step","model MT10FD",null,300,null,"hour",22.05]
[8746,"Van-up to 15 passenger","light duty, class 1",null,"225-300",null,"hour",20.48]
[8747,"Van-up to 15 passenger","light duty, class 2",null,"225-300",null,"hour",20.77]
[8748,"Van-cargo","light duty, class 1",null,"225 - 300",null,"hour",22.44]
[8749,"Van-cargo","light duty, class 2",null,"225-300",null,"hour",22.68]
[8750,"Vehicle, Small",null,null,"to 30",null,"hour",6.41]
[8753,"Vehicle, Recreational",null,null,"to 10",null,"hour",2.87]
[8754,"Motor Coach","GVW=50534","56 Passenger + 1-Driver",430,"Passenger Transportation","Hour",63.94]
[8755,"Golf Cart","Capacity","2 person",0,"Battery operated","hour",3.8]
[8770,"Welder, Portable",null,null,"to 16","Includes ground cable and lead\ncable.","hour",4.1100000000000003]
[8771,"Welder, Portable",null,null,"to 34","Includes ground cable and lead\ncable.","hour",7.21]
[8772,"Welder, Portable",null,null,"to 50","Includes ground cable and lead\ncable.","hour",13.66]
[8773,"Welder, Portable",null,null,"to 80","Includes ground cable and lead\ncable.","hour",13.75]
[8780,"Truck, Water","Tank Capacity","2500 Gal","to 175","Include pump and rear spray\nsystem.","hour",31.05]
[8781,"Truck, Water","Tank Capacity","4000 Gal","to 250","Include pump and rear spray\nsystem.","hour",56.57]
[8788,"Container & roll off truck","Roll off Truck","30 yds,",200,"Roll-off-Truck only","hour",23.73]
[8789,"Truck, Tractor","1997 Freightliner F120",null,430,null,"hour",56.81]
[8790,"Truck, Tractor","4 x 2","25000 lbs","to 210",null,"hour",43.43]
[8791,"Truck, Tractor","4 x 2","35000 lbs","to 330",null,"hour",47.57]
[8792,"Truck, Tractor","6 x 2","45000 lbs","to 360",null,"hour",52.98]
[8794,"Truck, freight","Enclosed w/lift gate. Medium duty\nclass 5","gvwr 16000-19500 Lbs",200,"4 X 2 Axle (D)","hour",27.25]
[8795,"Truck, backhoe carrier","Three axle, class 8, heavy duty","over 33000Lbs",280,null,"hour",34.56]
[8796,"Truck, freight","Eenclosed w/lift gate. Heavy duty,\nclass 7","26,001 to 33,000 lbs gvwr",217,"4 X 2 Axle (D)","hour",31.43]
[8798,"Truck","Tilt and roll-back, two axle, class 7\nheavy duty,","to 33,000 gvwr",217,"4 X 2 Axle (D)","hour",32.130000000000003]
[8799,"Truck,","Tilt and roll back, three axle. class 8\nheavy duty","over 33,001+ gvwr",280,"6 X 4 Axle (D)","hour",42.33]
[8800,"Truck, Pickup",null,null,null,"When transporting people.","mile",0.54500000000000004]
[8801,"Truck, Pickup","1/2-ton Pickup Truck","4x2-Axle",160,null,"hour",12.78]
[8802,"Truck, Pickup","1-ton Pickup Truck","4x2-Axle",234,null,"hour",17.91]
[8803,"Truck, Pickup","1 1/4-ton Pickup Truck","4x2-Axle",260,null,"hour",21.1]
[8804,"Truck, Pickup","1 1/2-ton Pickup Truck","4x2-Axle",300,null,"hour",23.22]
[8805,"Truck, Pickup","1 3/4-ton Pickup Truck","4x2-Axle",300,null,"hour",24.85]
[8806,"Truck, Pickup","3/4-ton Pickup Truck","4x2-Axle",165,null,"hour",14.32]
[8807,"Truck, Pickup","3/4-ton Pickup Truck","4x4-Axle",285,"Crew","hour",22.64]
[8808,"Truck, Pickup","1-ton Pickup Truck","4x4-Axle",340,"Crew","hour",22.99]
[8809,"Truck, Pickup","1 1/4-ton Pickup Truck","4x4-Axle",360,"Crew","hour",26.55]
[8810,"Truck, Pickup","1 1/2-ton Pickup Truck","4x4-Axle",362,"Crew","hour",26.82]
[8811,"Truck, Pickup","1 3/4-ton Pickup Truck","4x4-Axle",362,"Crew","hour",27.55]
[8820,"Skidder accessory","2005 JCB Grapple Claw",null,0,null,"hour",1.75]
[8821,"Forklift, accessory","2005 ACS Grapple Bucket",null,0,null,"hour",1.56]
[8822,"Truck,  Loader","Debris/Log  (Knuckleboom\nLoader/Truck)",null,230,null,"hour",53.22]
[8823,"Chipper- Wood Recycler","Cat 16 engine",null,700,null,"hour",118.5]
[8824,"Skidder","model Cat 525B",null,"up to 160",null,"hour",64.790000000000006]
[8825,"Skidder","40K lbs- model Cat  525C",null,"161 and up",null,"hour",128.66999999999999]
[8840,"Truck, service","fuel and lube","up to 26,000 gvwr","215-225",null,"hour",40.19]
[8841,"Truck, fuel","2009 International 1,800 gal. storage tank",null,200,null,"hour",32.01]
[8842,"Mobile Command Trailer","(8’ X 28’) with 7.5 KW Generator",null,0,"Move to Location by Tractor","hour",14.73]
[8843,"Mobile Response Trailer","(8’ X 31’) with 4.5 KW Generator?",null,0,"Move to Location by Tractor","hour",13.87]
[8844,"Mobile Command Center","(unified) (RV) Ulitimaster MP-35","43 FT Long with Generator",400,null,"hour",86.1]
[8845,"Mobile Command Post Vehicle","(RV) (In- Motion)","22-Ft Long",340,null,"hour",31.55]
[8846,"Mobile Command Post Vehicle","(RV) (Stationary)  w/9.6 KW\nGenerator","22-Ft Long",340,null,"hour",20.329999999999998]
[8847,"Mobile Command Center (Trailer)","48'x8' Trailer, Fully Equiped Mobile\nCommand Center","48-Ft Long",0,"Move to Location by Tractor","hour",31.69]
[8848,"Mobile Command Center (Trailer)","48'x8' When being Moved w/Truck\nTractor",null,310,null,"hour",50.69]
[8849,"Mobile Command Center","43'x8.5' x 13.5'H with self 30kw\nGenerator",null,280,"Generator Rate not included","hour",55.37]
[8850,"Mobile Command Center","2007-Freightliner MT-55, (RV)",null,260,null,"hour",47.12]
[8851,"Mobile Command Van","1990- Ford Econoline-\nCommunication Van",null,230,"Communication Equipment","hour",42.78]
[8852,"Mobile Command Center","47.5' X 8.75 Fully Equip' (In motion)\n(RV)",null,410,null,"hour",68.040000000000006]
[8853,"Mobile Command Center","47.5' X 8.75 Fully Equip' (Stationary)",null,410,null,"hour",45.89]
[8854,"Mobile Command Vehicle","53' X 8.75 Fully Equip",null,"480-550",null,"hour",98.84]
[8870,"Light Tower","Terex/Amida AL 4000.  with (4) 500\nwatt lights","w/10kw power unit",13.5,null,"hour",11.11]
[8871,"Light Tower","2004 Allmand",null,null,null,"hour",6.93]
[8872,"SandBagger Machine","(Spider) automatic","w/Vibration & Conveyor Motors","2-4.5",null,"hour",49.42]
[8900,"Helicopter","OH-58 KIOWA (Military) is the same\nas “Bell-206B3",null,420,null,"hour",467]
[8901,"Helicopter","OH-58 KIOWA (Military) is the same\nas “Bell-206BR",null,420,null,"hour",489]
[8902,"Helicopter","Model Bell 206-L3 Jet Range\nHelicopter",null,650,"Jet Range III-Helicopter","hour",575]
[8903,"Helicopter","Model Bell 206L1 Long Ranger",null,650,"Long Ranger","hour",585.47]
[8904,"Helicopter","Model Bell 206LT Long Range Twinranger",null,450,"Twinranger","hour",763.3]
[8905,"Helicopter","Model Bell 407 EMS- Ambulance",null,250,null,"hour",625.35]
[8906,"Piper-Fixed wing","Model Navajo PA-31",null,310,null,"hour",476.6]
[8907,"Piper-Fixed wing","PA-31-350, Navajo Chieftn twin\nengine",null,350,null,"hour",507.2]
[8908,"Sikorsky Helicopter","Model UH-60 (Blackhawk) medium lift","Medium Lift",1890,"Fire Fighter Same as S70C","hour",2974.45]
[8909,"Helicopter","Model UH-A (Blackhawk) Medium lift","Medium Lift",1890,"Fire Fighter","hour",5559.04]
[8910,"Boeing Helicopter","Model CH-47 (Chinook) heavy lift","Heavy Lift",2850,"Fire Fighter","hour",10857.5]
[8911,"Helicopter- light utility","Model  Bell 407GX - 7 seater","7-Seaters",675,"Passenger Aircraft","hour",620.38]
[8912,"Helicopter- light utility","Modle Bell 206L- 7 seater","7-Seaters",420,"Passenger Aircraft","hour",607.91999999999996]
[8913,"Helicopter","Model Bell-206L4",null,726,null,"hour",570.24]
[8914,"King Air 200 Turboprop Aircraft","Blackhawk King Air B200XP61",null,669,null,"hour",1318.11]
[8915,"Turboprops Blackhawk Aircraft","Blackhawk Caravan XP42 A",null,850,null,"hour",738.12]
[8916,"Turboprops Blackhawk Aircraft","King Air C90 XP135 A",null,550,null,"hour",1108.33]
[8917,"Aerostar Piston Aircraft","Aerostar 601P",null,290,null,"hour",466.67]
[8918,"Bell UH -1H Huey Helicopter II","Engine:1 × Lycoming T53-L-11 turboshaft",null,1100,"Travel Range 253 Nautical\nMiles","hour",1376.74]
[8943,"Wire Puller Machine","Overhead Wire Pulling Machine",null,30,"Overhead/Underground Wire\nPulling Machine","hour",20.16]
[8944,"Wire Tensioning Machine","3000 Lbs",null,null,"Overhead Wire Tensioning\nMachine","hour",14.84]
[8945,"Aerial Lift - 20 Ft High","model 2008 Genie Scissor Lift","1000 Lbs",null,"24 Volt","hour",6.44]

{"sheet":"Sheet5","index":2,"n_rows":44,"n_cols":1,"rows_kept":44,"cut":false,"hidden":false,"merged":[]}
["1a Water Facilities "]
["1b Sewer Facilities"]
["2 Solid Waste Disposal Facility "]
["3 Other Public Utilities"]
["4 Street Improvements"]
["5 Flood/Drainage Facility "]
["5a Flood/Drainage-Debris Removal "]
["6 Neighborhood Facilities/Community Center"]
["7 Senior Centers"]
["8 Centers for the Handicap"]
["9 Parks and Other Recreation "]
["10 Fire Protection Facilities"]
["13 Specially Authorized Private Facility"]
["14 Specially Authorized Public Facility "]
["15 Public Services"]
["16 Interim Assistance"]
["17 Housing Rehabilitation "]
["17c Housing Reconstruction "]
["17d Rehabilitation-Emergency Facility "]
["18 Rehabilitation- Public Housing"]
["19a Homeownership Assistance"]
["19b Affordable New Housing"]
["20 Clearance/Demolition Activity "]
["21 Historic Preservation"]
["21a DR- Historic Preservation "]
["22 Removal of Architectural "]
["23 Code Enforcement"]
["24 Acquisition "]
["25 Relocation Payment and "]
["26 Economic Development Local "]
["27 Economic Development Intergovernmental "]
["29 Special Activities by Local Govt."]
["30 Engineering/Architecture"]
["31 Planning/Urban Design "]
["31a COG Planning/Project Delivery "]
["32 Administration "]
["33 Planning, Project Delivery "]
["33-35 Environmental Retained "]
["35 Environmental "]
["Single Family Rental Rehab."]
["Single Family Rental Recon."]
["Multi-Family Rental Rehab."]
["Multi-Family Rental Recon."]
["Application and Survey Review "]

{"sheet":"Sheet4","index":3,"n_rows":11,"n_cols":7,"rows_kept":11,"cut":false,"hidden":true,"merged":[]}
["2019-01-01"]
["Sunday","Monday","Tuesday","Wednesday","Thursday","Friday","Saturday"]
[null,null,1,2,3,4,5]
[]
[6,7,8,9,10,11,12]
[]
[13,14,15,16,17,18,19]
[]
[20,21,22,23,24,25,26]
[]
[27,28,29,30,31]

{"sheet":"Sheet2","index":4,"n_rows":44,"n_cols":35,"rows_kept":44,"cut":false,"hidden":true,"merged":[[3,0,3,1],[3,2,3,3],[3,4,3,6],[4,0,4,1],[4,2,4,3],[4,4,4,6],[0,0,0,18],[1,0,2,1],[1,2,2,3],[1,4,2,6],[1,7,1,13],[1,14,2,14],[1,15,2,15],[1,16,2,16],[1,17,2,17],[1,18,2,18],[7,0,7,1],[7,2,7,3],[7,4,7,6],[8,0,8,1],[8,2,8,3],[8,4,8,6],[5,0,5,1],[5,2,5,3],[5,4,5,6],[6,0,6,1],[6,2,6,3],[6,4,6,6],[11,0,11,1],[11,2,11,3],[11,4,11,6],[12,0,12,1],[12,2,12,3],[12,4,12,6],[9,0,9,1],[9,2,9,3],[9,4,9,6],[10,0,10,1],[10,2,10,3],[10,4,10,6],[15,0,15,1],[15,2,15,3],[15,4,15,6],[16,0,16,1],[16,2,16,3],[16,4,16,6],[13,0,13,1],[13,2,13,3],[13,4,13,6],[14,0,14,1],[14,2,14,3],[14,4,14,6],[19,0,19,1],[19,2,19,3],[19,4,19,6],[20,0,20,17],[21,0,21,18],[17,0,17,1],[17,2,17,3],[17,4,17,6],[18,0,18,1],[18,2,18,3],[18,4,18,6],[22,17,23,18],[24,0,24,2],[24,3,24,4],[24,5,24,7],[24,17,24,18],[25,0,25,2],[25,3,25,4],[25,5,25,7],[25,17,25,18],[22,0,23,2],[22,3,23,4],[22,5,23,7],[22,8,22,14],[22,15,23,15],[22,16,23,16],[28,0,28,2],[28,3,28,4],[28,5,28,7],[28,17,28,18],[29,0,29,2],[29,3,29,4],[29,5,29,7],[29,17,29,18],[26,0,26,2],[26,3,26,4],[26,5,26,7],[26,17,26,18],[27,0,27,2],[27,3,27,4],[27,5,27,7],[27,17,27,18],[32,0,32,2],[32,3,32,4],[32,5,32,7],[32,17,32,18],[33,0,33,2],[33,3,33,4],[33,5,33,7],[33,17,33,18],[30,0,30,2],[30,3,30,4],[30,5,30,7],[30,17,30,18],[31,0,31,2],[31,3,31,4],[31,5,31,7],[31,17,31,18],[36,0,36,2],[36,3,36,4],[36,5,36,7],[36,17,36,18],[37,0,37,2],[37,3,37,4],[37,5,37,7],[37,17,37,18],[34,0,34,2],[34,3,34,4],[34,5,34,7],[34,17,34,18],[35,0,35,2],[35,3,35,4],[35,5,35,7],[35,17,35,18],[43,16,43,33],[41,0,41,16],[41,17,41,18],[40,0,40,2],[40,3,40,4],[40,5,40,7],[40,17,40,18],[38,0,38,2],[38,3,38,4],[38,5,38,7],[38,17,38,18],[39,0,39,2],[39,3,39,4],[39,5,39,7],[39,17,39,18]]}
["Table A: Personnel Costs"]
["Employee Name",null,"Job Classification",null,"Activity Performed",null,null,"Hours Worked",null,null,null,null,null,null,"Total Hours -GLO-CDR","Total Hours -       All Work","Total Hours -       All Leave","Hourly Rate","Total Cost"]
[null,null,null,null,null,null,null,"M","T","W","T","F","S","S"]
[null,null,null,null,null,null,null,null,null,null,null,null,null,null,null,{"$f":"SUM(H4:N4)","v":0},null,null,{"$f":"O4*R4","v":0}]
[null,null,null,null,null,null,null,null,null,null,null,null,null,null,null,0,null,null,0]
[null,null,null,null,null,null,null,null,null,null,null,null,null,null,null,0,null,null,0]
[null,null,null,null,null,null,null,null,null,null,null,null,null,null,null,0,null,null,0]
[null,null,null,null,null,null,null,null,null,null,null,null,null,null,null,0,null,null,0]
[null,null,null,null,null,null,null,null,null,null,null,null,null,null,null,0,null,null,0]
[null,null,null,null,null,null,null,null,null,null,null,null,null,null,null,0,null,null,0]
[null,null,null,null,null,null,null,null,null,null,null,null,null,null,null,0,null,null,0]
[null,null,null,null,null,null,null,null,null,null,null,null,null,null,null,0,null,null,0]
[null,null,null,null,null,null,null,null,null,null,null,null,null,null,null,0,null,null,0]
[null,null,null,null,null,null,null,null,null,null,null,null,null,null,null,0,null,null,0]
[null,null,null,null,null,null,null,null,null,null,null,null,null,null,null,0,null,null,0]
[null,null,null,null,null,null,null,null,null,null,null,null,null,null,null,0,null,null,0]
[null,null,null,null,null,null,null,null,null,null,null,null,null,null,null,0,null,null,0]
[null,null,null,null,null,null,null,null,null,null,null,null,null,null,null,0,null,null,0]
[null,null,null,null,null,null,null,null,null,null,null,null,null,null,null,0,null,null,0]
[null,null,null,null,null,null,null,null,null,null,null,null,null,null,null,0,null,null,0]
["Subtotal Weekly Personnel Costs",null,null,null,null,null,null,null,null,null,null,null,null,null,null,null,null,null,{"$f":"SUM(S4:S20)","v":0}]
["Table B: Equipment Costs"]
["Equipment (type, size, & FEMA code)",null,null,"Operator",null,"Activity Performed and Location of Work*",null,null,"Hours/Miles**",null,null,null,null,null,null,"Total Hours/ Miles- GLO-CDR","Hourly/ Fed. Mileage Rate","Total Cost"]
[null,null,null,null,null,null,null,null,"M","T","W","T","F","S","S"]
[null,null,null,null,null,null,null,null,null,null,null,null,null,null,null,null,null,{"$f":"P25*Q25","v":0}]
[null,null,null,null,null,null,null,null,null,null,null,null,null,null,null,null,null,0]
[null,null,null,null,null,null,null,null,null,null,null,null,null,null,null,null,null,0]
[null,null,null,null,null,null,null,null,null,null,null,null,null,null,null,null,null,0]
[null,null,null,null,null,null,null,null,null,null,null,null,null,null,null,null,null,0]
[null,null,null,null,null,null,null,null,null,null,null,null,null,null,null,null,null,0]
[null,null,null,null,null,null,null,null,null,null,null,null,null,null,null,null,null,0]
[null,null,null,null,null,null,null,null,null,null,null,null,null,null,null,null,null,0]
[null,null,null,null,null,null,null,null,null,null,null,null,null,null,null,null,null,0]
[null,null,null,null,null,null,null,null,null,null,null,null,null,null,null,null,null,0]
[null,null,null,null,null,null,null,null,null,null,null,null,null,null,null,null,null,0]
[null,null,null,null,null,null,null,null,null,null,null,null,null,null,null,null,null,0]
[null,null,null,null,null,null,null,null,null,null,null,null,null,null,null,null,null,0]
[null,null,null,null,null,null,null,null,null,null,null,null,null,null,null,null,null,0]
[null,null,null,null,null,null,null,null,null,null,null,null,null,null,null,null,null,0]
[null,null,null,null,null,null,null,null,null,null,null,null,null,null,null,null,null,0]
[null,null,null,null,null,null,null,null,null,null,null,null,null,null,null,null,null,0]
["Subtotal Weekly PersonnEqupipment Costs",null,null,null,null,null,null,null,null,null,null,null,null,null,null,null,null,{"$f":"SUM(R25:S41)","v":0}]
[]
[null,null,null,null,null,null,null,null,null,null,null,null,null,null,null,null,"Subtotal Weekly Personnel Costs",null,null,null,null,null,null,null,null,null,null,null,null,null,null,null,null,null,{"$f":"SUM(AI27:AI43)","v":0}]